bitfinex/quotes_ETHUSD_20250123
["timestamp","ask_amount","ask_price","bid_price","bid_amount"]
[1737640131570,3.0913,3234.9,3234.3,0.754]
[1737640131765,3.709419,3235.0,3234.3,0.754]
[1737640132113,3.709419,3235.0,3234.4,3.09175]
[1737640132608,3.09022,3236.1,3234.7,3.51684876]
[1737640132761,3.09043,3235.8,3235.2,3.09093]
[1737640132961,0.5428,3236.7,3235.6,3.09059]
[1737640133193,3.09001,3236.3,3235.6,3.09055]
[1737640133395,3.399101,3236.2,3235.6,3.09055]
[1737640133710,3.399111,3236.2,3235.6,3.09055]
[1737640135800,3.09016,3236.1,3235.4,3.86363]
[1737640136002,3.09039,3235.9,3235.4,0.7729]
[1737640136595,3.09039,3235.9,3235.4,3.86367]
[1737640136896,3.09039,3235.9,3235.4,0.7729]
[1737640137079,3.09018,3236.1,3235.4,0.7729]
[1737640137284,3.09039,3235.9,3235.4,0.7729]
[1737640138197,3.63319,3235.9,3235.3,3.09088]
[1737640138370,3.09039,3235.9,3235.3,3.09088]
[1737640138571,3.09039,3235.9,3235.1,3.09103]
[1737640138572,3.09048,3235.8,3235.1,3.09103]
[1737640138788,3.09048,3235.8,3235.2,3.09097]
[1737640138957,3.09059,3235.7,3235.1,3.09103]
[1737640139161,3.708658,3235.7,3234.9,3.09124]
[1737640139360,3.09072,3235.5,3234.9,3.09127]
[1737640139694,3.09093,3235.3,3234.8,0.7942]
[1737640139902,3.09061,3235.6,3234.5,3.50064]
[1737640140101,3.09107,3235.2,3234.6,3.0915]
[1737640140268,3.09107,3235.2,3234.5,0.409]
[1737640140269,3.091,3235.2,3234.7,3.09147]
[1737640140459,3.091,3235.2,3234.6,3.09157]
[1737640140660,3.09061,3235.6,3234.7,3.09139]
[1737640140861,3.09088,3235.4,3234.7,3.09139]
[1737640141069,3.09106,3235.2,3234.7,3.09147]
[1737640141302,3.09085,3235.4,3234.8,3.09135]
[1737640141484,3.09031,3236.0,3235.4,3.09079]
[1737640141860,3.09031,3236.0,3235.2,3.89497]
[1737640142066,3.09043,3235.8,3235.2,3.89497]
[1737640142266,3.09031,3236.0,3235.4,3.0908]
[1737640142466,3.09031,3236.0,3235.2,3.89496]
[1737640142662,3.09031,3236.0,3235.4,3.09074]
[1737640142858,0.61415599,3236.4,3236.2,3.09001]
[1737640143166,0.61415599,3236.4,3236.3,3.08994]
[1737640143668,0.5428,3237.4,3236.0,0.7938]
[1737640143669,3.5428,3237.4,3236.0,0.7938]
[1737640143900,3.08968,3236.6,3236.0,0.7938]
[1737640144107,3.0901,3236.2,3236.0,0.7938]
[1737640144312,3.08971,3236.6,3235.7,0.8158]
[1737640144506,3.08983,3236.5,3235.9,3.09026]
[1737640144824,0.308948,3236.7,3235.7,0.8158]
[1737640144999,3.08923,3237.1,3236.5,0.7765]
[1737640145329,0.617825,3237.1,3236.6,3.0896]
[1737640145461,0.617825,3237.1,3236.5,0.7765]
[1737640145462,3.08883,3237.5,3236.5,0.7765]
[1737640145663,3.08883,3237.5,3236.9,3.0893]
[1737640145880,3.08883,3237.5,3236.9,3.08935]
[1737640146067,3.08883,3237.5,3237.0,3.08927]
[1737640146378,3.08883,3237.5,3236.8,3.08946]
[1737640146597,6.540873,3237.5,3236.8,3.08946]
[1737640146814,3.08899,3237.3,3236.8,3.08946]
[1737640146967,3.08899,3237.3,3236.6,3.08965]
[1737640147167,3.08899,3237.3,3236.6,6.17922]
[1737640147398,3.08899,3237.3,3236.5,0.7765]
[1737640147399,3.08934,3237.0,3236.5,0.7765]
[1737640147702,0.308934,3236.9,3236.5,0.7765]
[1737640147865,0.308934,3236.9,3236.3,3.49789]
[1737640147866,3.398364,3236.9,3236.3,3.49789]
[1737640148065,3.08943,3236.9,3236.3,3.49789]
[1737640148603,3.08924,3237.1,3236.2,3.08995]
[1737640148762,3.08924,3237.1,3236.5,3.08973]
[1737640148967,3.08936,3237.0,3236.2,3.09003]
[1737640149200,0.308936,3236.9,3236.3,3.08989]
[1737640149392,3.08936,3237.0,3236.4,3.08983]
[1737640149701,3.08954,3236.8,3236.2,3.08999]
[1737640149902,3.08962,3236.7,3236.1,3.90203]
[1737640150307,3.08954,3236.8,3236.2,3.09004]
[1737640150472,3.08954,3236.8,3236.1,3.90203]
[1737640150668,3.08992,3236.4,3235.7,3.09048]
[1737640150873,3.08992,3236.4,3235.8,3.09038]
[1737640151272,3.08967,3236.6,3236.1,3.09012]
[1737640151472,3.08935,3237.0,3236.4,3.08981]
[1737640151893,3.08948,3236.8,3236.2,3.08997]
[1737640152397,3.08967,3236.6,3236.0,3.09022]
[1737640152601,3.08968,3236.6,3236.0,3.09022]
[1737640152973,3.08962,3236.7,3236.0,3.09016]
[1737640153184,6.796917,3236.8,3236.2,3.09002]
[1737640153397,3.08957,3236.7,3236.2,3.09002]
[1737640153709,0.5428,3236.4,3235.7,0.7855]
[1737640154008,3.08986,3236.4,3235.7,0.7855]
[1737640154216,3.09007,3236.2,3235.7,0.7855]
[1737640154573,3.09007,3236.2,3235.5,3.0907]
[1737640154779,3.09028,3236.0,3235.4,1.1997]
[1737640155045,3.09033,3235.9,3235.4,4.29044]
[1737640155173,3.09028,3236.0,3235.4,4.29044]
[1737640155174,3.09044,3235.8,3235.4,0.7917]
[1737640155705,3.09028,3236.0,3235.4,0.7917]
[1737640155873,3.0904,3235.9,3235.4,0.7917]
[1737640156622,3.09049,3235.8,3235.4,0.7917]
[1737640156831,3.0909,3235.3,3234.6,3.98190056]
[1737640157123,3.09136,3234.9,3234.6,3.14950056]
[1737640157474,6.18271,3234.9,3234.6,3.14950056]
[1737640157676,3.09135,3234.9,3234.6,3.14950056]
[1737640157870,3.09135,3234.9,3234.2,3.92427]
[1737640158476,3.09111,3235.1,3234.3,0.47713207]
[1737640158668,3.09135,3234.9,3234.3,0.47713207]
[1737640158881,3.09111,3235.1,3234.5,3.09166]
[1737640159144,3.09118,3235.1,3234.4,6.18345]
[1737640159426,3.09099,3235.2,3234.6,3.09156]
[1737640159730,3.09111,3235.1,3234.6,3.09156]
[1737640160083,6.18229,3235.1,3234.4,3.09169]
[1737640160284,3.09111,3235.1,3234.5,3.09164]
[1737640160519,3.09072,3235.5,3234.7,3.09139]
[1737640160719,3.09072,3235.5,3234.4,0.74930321]
[1737640160720,3.09056,3235.7,3235.0,3.09114]
[1737640160888,3.09071,3235.5,3234.8,3.09138]
[1737640161101,3.09082,3235.4,3234.8,3.09138]
[1737640161304,3.09063,3235.6,3234.9,3.400388]
[1737640161523,3.09055,3235.7,3234.9,3.400388]
[1737640161687,3.09055,3235.7,3235.1,3.09101]
[1737640161887,0.851828,3236.0,3234.9,3.400348]
[1737640162228,3.09053,3235.7,3235.1,3.091]
[1737640162381,3.09063,3235.6,3235.1,3.091]
[1737640162581,3.09052,3235.7,3235.1,3.091]
[1737640162830,3.09057,3235.7,3235.1,3.091]
[1737640163121,3.09049,3235.8,3235.2,3.9172]
[1737640163328,3.09033,3235.9,3235.2,3.9172]
[1737640163485,3.09033,3235.9,3235.3,3.09082]
[1737640163681,3.09048,3235.8,3235.2,3.9172]
[1737640163884,3.09045,3235.8,3235.2,3.9172]
[1737640164094,3.09045,3235.8,3235.2,4.68295088]
[1737640164519,3.09045,3235.8,3235.2,3.91729]
[1737640165433,0.5428,3236.0,3234.8,0.408]
[1737640165729,0.5428,3236.0,3234.6,3.09153]
[1737640165933,3.0,3236.6,3234.5,0.7555]
[1737640165934,3.09134,3234.9,3234.5,0.7555]
[1737640166107,3.09134,3234.9,3234.4,0.74930321]
[1737640166938,6.18227,3235.1,3234.4,3.84100321]
[1737640167094,3.0911,3235.1,3234.5,3.09165]
[1737640167437,3.09119,3235.0,3234.4,3.84100321]
[1737640167797,3.09119,3235.0,3234.4,6.93268321]
[1737640167996,3.09094,3235.3,3234.4,6.93268321]
[1737640167997,3.09107,3235.2,3234.4,3.84098321]
[1737640168191,3.09094,3235.3,3234.6,3.09151]
[1737640168399,3.09094,3235.3,3234.7,3.09145]
[1737640170979,3.09094,3235.3,3234.5,0.38409832]
[1737640170980,3.09116,3235.1,3234.5,0.38409832]
[1737640171180,3.09119,3235.0,3234.5,3.0916]
[1737640171369,3.09104,3235.2,3234.6,3.09149]
[1737640171745,3.0,3235.5,3234.5,3.09166]
[1737640172101,3.09118,3235.1,3234.3,3.09185]
[1737640172249,3.09118,3235.1,3234.3,3.09177]
[1737640172449,3.09118,3235.1,3234.5,3.0916]
[1737640172863,3.09118,3235.1,3234.5,6.18319]
[1737640173266,3.09118,3235.1,3234.5,3.09159]
[1737640174190,0.61095036,3235.6,3235.0,3.86166]
[1737640174485,3.63334,3235.7,3235.0,0.7705]
[1737640174702,3.09078,3235.5,3235.0,0.7705]
[1737640174987,3.09136,3234.9,3234.3,3.84229]
[1737640175146,3.09152,3234.7,3234.3,0.7505]
[1737640175863,3.09151,3234.7,3234.3,0.7505]
[1737640176187,3.09113,3235.1,3234.5,3.09163]
[1737640176349,3.09101,3235.2,3234.6,3.09149]
[1737640176545,4.23696432,3235.7,3234.3,0.7505]
[1737640176546,3.09081,3235.4,3234.9,3.09128]
[1737640176971,3.09081,3235.4,3235.0,0.821]
[1737640178378,3.09065,3235.6,3235.0,3.91216]
[1737640178910,3.09018,3236.1,3235.6,3.0906]
[1737640179768,3.09014,3236.1,3235.6,3.0906]
[1737640180663,3.09008,3236.2,3235.4,3.09072]
[1737640180870,3.09026,3236.0,3235.4,3.09072]
[1737640181306,3.09008,3236.2,3235.5,3.09068]
[1737640181454,3.0902,3236.1,3235.5,3.09068]
[1737640181652,3.09024,3236.0,3235.5,3.09068]
[1737640182099,3.09024,3236.0,3235.4,0.309072]
[1737640182395,3.09049,3235.8,3235.2,3.09097]
[1737640182607,3.0907,3235.6,3235.0,3.91213]
[1737640182805,3.0907,3235.6,3235.0,0.821]
[1737640183098,3.09082,3235.4,3235.0,0.821]
[1737640183672,3.0907,3235.6,3235.0,0.821]
[1737640183875,3.0907,3235.6,3234.6,0.8178]
[1737640183876,3.09115,3235.1,3234.6,0.8178]
[1737640184508,3.09115,3235.1,3234.3,3.49979]
[1737640184653,3.09133,3234.9,3234.3,1.1714]
[1737640185093,3.09115,3235.1,3234.4,3.09175]
[1737640185346,3.09115,3235.1,3234.5,3.09164]
[1737640185662,3.09115,3235.1,3234.6,3.09155]
[1737640186309,3.091,3235.2,3234.6,3.09148]
[1737640187015,3.09111,3235.1,3234.6,3.09148]
[1737640187423,3.09129,3234.9,3234.4,3.09172]
[1737640188301,3.09119,3235.0,3234.4,3.09172]
[1737640188547,3.09092,3235.3,3234.7,3.09142]
[1737640188982,3.71142681,3235.5,3235.0,3.09118]
[1737640189161,6.09047,3235.8,3235.2,3.09093]
[1737640189162,3.09045,3235.8,3235.2,3.09093]
[1737640189464,3.09028,3236.0,3235.2,3.09093]
[1737640189753,3.09044,3235.8,3235.2,3.09093]
[1737640190135,3.09044,3235.8,3235.3,3.0909]
[1737640190336,3.09044,3235.8,3235.0,3.89693]
[1737640190650,0.309044,3235.8,3235.0,0.8058]
[1737640190805,3.09088,3235.4,3234.8,3.0913]
[1737640191003,6.490014,3235.8,3235.0,3.09111]
[1737640191209,3.399504,3235.8,3235.1,3.091]
[1737640191405,0.309044,3235.8,3235.0,3.09111]
[1737640191610,3.09072,3235.5,3235.0,3.09111]
[1737640192257,3.09072,3235.5,3234.8,3.09134]
[1737640192455,0.6247797,3235.9,3234.7,0.7799]
[1737640192608,3.091,3235.2,3234.7,3.87135]
[1737640192804,3.091,3235.2,3234.7,0.7799]
[1737640193056,3.09115,3235.1,3234.7,0.7799]
[1737640193223,3.09123,3235.0,3234.7,0.7799]
[1737640193422,3.09111,3235.1,3234.7,0.7799]
[1737640193756,3.09103,3235.2,3234.7,0.7799]
[1737640193913,3.09111,3235.1,3234.7,0.7799]
[1737640194114,3.63372,3235.3,3234.7,3.87136]
[1737640194464,3.091,3235.2,3234.7,3.87136]
[1737640195429,3.091,3235.2,3234.7,0.7799]
[1737640195815,3.09092,3235.3,3234.8,3.09136]
[1737640196241,3.09071,3235.5,3234.8,3.09136]
[1737640196439,3.09052,3235.7,3235.1,3.09107]
[1737640196925,3.09063,3235.6,3235.1,3.09107]
[1737640197315,3.09072,3235.5,3234.9,3.09124]
[1737640197707,3.0908,3235.4,3234.9,3.09124]
[1737640197970,3.0908,3235.4,3234.8,0.427926]
[1737640199338,3.0908,3235.4,3234.9,3.09127]
[1737640199852,3.09114,3235.1,3234.7,0.7799]
[1737640200022,3.09113,3235.1,3233.7,0.7691]
[1737640200222,3.09175,3234.5,3233.9,3.09216]
[1737640200432,3.09151,3234.7,3234.0,3.09212]
[1737640200651,3.09151,3234.7,3233.8,0.407]
[1737640200652,3.09162,3234.6,3234.1,3.401202]
[1737640201152,3.09151,3234.7,3234.1,3.401202]
[1737640201355,0.62481063,3234.9,3233.9,3.0922]
[1737640201528,3.09176,3234.4,3233.9,3.4992]
[1737640201735,3.09176,3234.4,3233.7,0.7691]
[1737640201935,6.18359,3234.4,3233.7,4.26844]
[1737640202469,3.09176,3234.4,3233.8,3.09232]
[1737640202617,3.09176,3234.4,3233.7,1.1761]
[1737640202618,3.09203,3234.2,3233.7,0.7691]
[1737640202815,0.62481063,3234.9,3233.8,3.09227]
[1737640203020,0.62481063,3234.9,3234.4,0.8236]
[1737640203244,3.09109,3235.1,3234.6,3.09154]
[1737640203456,3.15511255,3235.8,3234.4,0.8236]
[1737640203656,0.5428,3235.9,3234.4,0.8236]
[1737640203657,3.09068,3235.6,3234.9,3.09127]
[1737640203855,3.09077,3235.5,3234.6,3.09152]
[1737640204088,3.09077,3235.5,3234.9,3.09127]
[1737640204426,3.09082,3235.4,3234.9,3.09127]
[1737640204818,3.09091,3235.3,3234.7,3.09145]
[1737640205051,3.09107,3235.2,3234.6,0.407]
[1737640205365,3.09076,3235.5,3234.9,3.09124]
[1737640206045,3.09085,3235.4,3234.9,3.09124]
[1737640206529,3.09071,3235.5,3234.9,3.09124]
[1737640206865,0.60655529,3235.7,3234.7,3.09142]
[1737640207032,3.09099,3235.3,3234.6,0.407]
[1737640207229,3.09076,3235.5,3234.7,3.0914]
[1737640207432,3.0909,3235.3,3234.7,3.0914]
[1737640207902,3.0909,3235.3,3234.4,0.8236]
[1737640207903,3.09119,3235.0,3234.4,3.91536]
[1737640208050,3.09119,3235.0,3234.4,1.2306]
[1737640208363,3.09154,3234.7,3234.2,3.09194]
[1737640209162,3.09154,3234.7,3234.1,0.772]
[1737640209363,3.09177,3234.4,3234.1,0.772]
[1737640209552,3.09203,3234.2,3233.7,0.8093]
[1737640209755,3.09231,3233.9,3233.7,0.8093]
[1737640210077,3.09231,3233.9,3233.6,3.14950056]
[1737640210270,3.09206,3234.1,3233.6,3.14950056]
[1737640210465,3.09243,3233.7,3233.6,3.14950056]
[1737640210882,3.09231,3233.9,3233.6,3.14950056]
[1737640211195,3.09243,3233.7,3233.6,3.14950056]
[1737640211405,3.09243,3233.7,3233.1,0.407]
[1737640211700,0.62798123,3234.3,3233.6,3.09244]
[1737640211994,0.62798123,3234.3,3233.8,3.09232]
[1737640212179,3.09176,3234.4,3233.8,3.09232]
[1737640212380,3.09188,3234.3,3233.7,3.401674]
[1737640212690,3.09196,3234.2,3233.7,3.401674]
[1737640212911,0.6164195,3234.9,3234.0,3.09213]
[1737640213201,3.09138,3234.8,3234.0,3.09213]
[1737640213366,3.09177,3234.4,3233.9,0.407]
[1737640213755,3.09157,3234.6,3233.9,0.407]
[1737640213989,6.63394,3235.1,3233.9,0.407]
[1737640213990,0.5428,3235.1,3233.9,0.407]
[1737640214195,6.09117,3235.1,3234.4,3.09167]
[1737640214351,3.091,3235.2,3234.7,3.09145]
[1737640214555,3.6336,3235.5,3234.7,3.09145]
[1737640214775,0.90616,3235.5,3234.7,3.09145]
[1737640214981,3.09092,3235.3,3234.7,3.09145]
[1737640215397,3.09112,3235.1,3234.5,3.8934]
[1737640215715,0.5428,3235.5,3234.3,3.09183]
[1737640215716,3.09137,3234.9,3234.3,3.09178]
[1737640215860,3.09107,3235.2,3234.5,3.0916]
[1737640216064,3.09139,3234.8,3234.3,3.85318]
[1737640216628,3.09139,3234.8,3234.1,3.09201]
[1737640216629,3.09139,3234.8,3234.1,3.09199]
[1737640216912,3.0,3235.0,3234.0,0.7614]
[1737640217058,3.09163,3234.6,3234.0,0.7614]
[1737640217261,3.0,3234.8,3234.2,3.0919]
[1737640217508,3.09146,3234.8,3234.2,3.47723]
[1737640217660,0.309107,3235.2,3234.2,3.47723]
[1737640217865,3.09126,3235.0,3234.2,3.47723]
[1737640218096,3.09139,3234.8,3234.2,3.47723]
[1737640219012,3.09147,3234.7,3234.0,6.94556]
[1737640219160,3.09176,3234.4,3234.0,0.7614]
[1737640219356,3.09181,3234.4,3234.0,0.7614]
[1737640219864,3.09201,3234.2,3233.6,3.09249]
[1737640220165,3.09201,3234.2,3233.7,3.09243]
[1737640220374,3.09201,3234.2,3233.7,3.790892]
[1737640220603,3.09201,3234.2,3233.7,0.698462]
[1737640220800,3.09201,3234.2,3233.5,0.7997]
[1737640220960,3.09201,3234.2,3233.5,3.89227]
[1737640221166,3.0921,3234.1,3233.5,3.89227]
[1737640221498,3.0921,3234.1,3233.5,3.89232]
[1737640221707,3.0921,3234.1,3233.5,3.8923]
[1737640221900,3.09215,3234.0,3233.5,0.7997]
[1737640222063,3.09225,3233.9,3233.5,0.7997]
[1737640222404,3.09244,3233.7,3233.5,0.7997]
[1737640222712,3.09244,3233.7,3233.2,0.407]
[1737640223121,3.09262,3233.5,3233.2,0.407]
[1737640223328,3.09262,3233.5,3232.9,3.09318]
[1737640223488,3.09262,3233.5,3232.9,4.194792]
[1737640223687,3.09274,3233.4,3232.9,4.194792]
[1737640224125,0.852015,3234.0,3232.9,1.101612]
[1737640224276,3.0929,3233.3,3232.9,0.407]
[1737640224477,0.5428,3233.2,3232.8,0.0031]
[1737640224777,3.09319,3232.9,3232.8,0.0031]
[1737640227837,6.09319,3232.9,3232.8,0.0031]
[1737640228247,6.63599,3232.9,3232.8,0.0031]
[1737640228409,3.09422,3231.9,3231.5,0.7884]
[1737640228614,3.09422,3231.9,3231.2,3.09478]
[1737640228615,3.09422,3231.9,3231.4,0.407]
[1737640230644,3.09436,3231.7,3231.4,0.407]
[1737640231193,3.09447,3231.6,3231.4,0.407]
[1737640231749,3.09478,3231.3,3230.8,0.7973]
[1737640232048,3.09486,3231.2,3230.8,0.7973]
[1737640232342,3.09464,3231.4,3230.9,3.14159568]
[1737640232546,3.09381,3232.3,3231.4,3.09455]
[1737640232845,3.09402,3232.1,3231.5,0.0459391]
[1737640233155,3.09409,3232.0,3231.5,0.0459391]
[1737640233293,3.09455,3231.5,3230.8,0.7973]
[1737640233500,0.5428,3231.7,3230.5,3.09548]
[1737640233501,3.09469,3231.4,3230.5,3.09548]
[1737640233698,3.0949,3231.2,3230.4,0.7583]
[1737640233993,0.309469,3231.4,3230.5,0.04616663]
[1737640233994,3.09514,3230.9,3230.5,0.04616663]
[1737640234198,3.09522,3230.8,3230.5,0.04616663]
[1737640234597,3.63784,3231.0,3230.5,0.04616663]
[1737640234838,0.5428,3231.0,3230.5,3.0954]
[1737640235047,3.63734,3231.5,3230.8,3.09515]
[1737640235337,3.09443,3231.7,3231.0,3.09498]
[1737640235338,3.09444,3231.6,3231.0,3.09498]
[1737640235694,3.09444,3231.6,3231.1,0.04350357]
[1737640235898,0.62819318,3231.7,3228.9,0.4037386]
[1737640235899,0.37226332,3231.5,3228.9,0.4037386]
[1737640236101,1.05,3230.8,3229.0,3.14950056]
[1737640236307,0.63339202,3230.0,3229.0,6.24635056]
[1737640236520,3.09571,3230.3,3229.2,3.09667]
[1737640236724,3.09487,3231.2,3229.4,3.09651]
[1737640236725,3.09586,3230.2,3229.4,3.09651]
[1737640236921,3.4993,3230.6,3229.3,0.407]
[1737640237123,3.09594,3230.1,3229.3,0.407]
[1737640237336,3.09614,3229.9,3229.3,0.407]
[1737640237841,3.0,3230.5,3229.3,0.407]
[1737640238137,3.0,3230.5,3229.0,3.14950056]
[1737640238138,3.09656,3229.4,3229.0,3.55650056]
[1737640238310,3.09656,3229.4,3228.5,3.09738]
[1737640238311,3.09694,3229.0,3228.5,1.1959]
[1737640238721,3.09714,3228.8,3228.5,1.1959]
[1737640238926,3.09741,3228.5,3228.0,3.93840056]
[1737640239535,3.09722,3228.7,3228.0,7.03628056]
[1737640239700,3.09722,3228.7,3228.0,8.09041462]
[1737640239901,3.0,3229.1,3228.0,8.09041462]
[1737640240101,3.09728,3228.7,3228.0,7.03628056]
[1737640240340,3.0,3229.2,3228.2,3.09768]
[1737640240639,3.09722,3228.7,3228.0,7.03628056]
[1737640241002,3.59602,3229.3,3228.0,3.93840056]
[1737640241003,3.09668,3229.3,3228.0,3.93840056]
[1737640241207,3.09668,3229.3,3228.8,0.8156]
[1737640241530,3.70880288,3229.7,3229.0,3.09691]
[1737640241703,3.09636,3229.6,3228.9,3.09702]
[1737640242054,3.09636,3229.6,3229.0,3.09693]
[1737640242349,3.09646,3229.5,3228.8,3.91265]
[1737640242557,3.09657,3229.4,3228.8,3.91265]
[1737640242858,3.715615,3229.6,3229.0,3.09692]
[1737640243325,3.715615,3229.6,3228.9,3.09702]
[1737640243326,3.09645,3229.5,3228.9,3.09702]
[1737640243813,3.715615,3229.6,3229.0,3.09692]
[1737640244016,3.09617,3229.8,3229.1,3.09676]
[1737640244219,3.09582,3230.2,3229.5,0.8312]
[1737640244431,3.0,3230.0,3229.5,0.8312]
[1737640244615,3.09582,3230.2,3229.5,3.92762]
[1737640244945,3.09592,3230.1,3229.5,0.8312]
[1737640245147,3.715083,3230.1,3229.5,3.92762]
[1737640245844,0.4993,3230.8,3229.8,3.09615]
[1737640246010,3.09567,3230.4,3229.6,6.19257]
[1737640246352,3.0,3230.3,3229.6,3.09628]
[1737640246532,3.0954,3230.6,3230.0,3.09596]
[1737640247407,3.59427,3231.1,3230.2,3.09576]
[1737640247608,0.61104938,3231.2,3230.8,3.09519]
[1737640247810,3.09435,3231.7,3231.0,3.095]
[1737640248009,3.09435,3231.7,3231.1,3.0949]
[1737640248248,3.59347,3231.9,3231.2,3.0948]
[1737640248434,3.09462,3231.5,3230.9,0.76]
[1737640248640,0.4993,3232.0,3230.9,0.76]
[1737640248950,3.09519,3230.9,3230.7,0.408]
[1737640249856,3.0952,3230.8,3230.4,0.408]
[1737640250056,3.09549,3230.5,3230.1,0.8326]
[1737640250374,3.09542,3230.6,3230.1,0.8326]
[1737640250560,0.4993,3231.3,3230.1,0.8326]
[1737640250725,3.09509,3231.0,3230.1,0.8326]
[1737640250925,0.309509,3230.9,3230.3,3.09568]
[1737640251147,3.404629,3230.9,3230.3,3.09562]
[1737640251553,0.309509,3230.9,3230.4,3.09552]
[1737640251938,0.309509,3230.9,3230.3,3.09562]
[1737640252156,3.0952,3230.8,3230.3,0.408]
[1737640252368,0.3404709,3230.7,3230.3,0.408]
[1737640252564,3.4357709,3230.7,3230.3,0.408]
[1737640252858,3.0955,3230.5,3230.1,0.8326]
[1737640253027,3.0956,3230.4,3229.5,0.8265]
[1737640253228,3.0956,3230.4,3229.6,0.408]
[1737640253444,3.09584,3230.2,3229.5,0.8265]
[1737640253731,3.09596,3230.1,3229.6,0.408]
[1737640254168,3.09599,3230.0,3229.6,0.408]
[1737640254526,3.0957,3230.3,3229.6,0.408]
[1737640254845,3.09584,3230.2,3229.6,0.408]
[1737640255168,3.0958,3230.2,3229.6,0.408]
[1737640255967,3.09559,3230.4,3229.6,0.408]
[1737640256268,3.59457,3230.8,3229.6,0.408]
[1737640256269,3.09576,3230.3,3229.7,3.09625]
[1737640256666,0.4993,3230.8,3229.7,0.7899]
[1737640256667,3.09527,3230.8,3229.7,0.7899]
[1737640256886,3.09527,3230.8,3230.2,0.7899]
[1737640257181,3.09517,3230.9,3230.3,3.09566]
[1737640258282,3.09562,3230.4,3230.3,0.407]
[1737640259382,3.714725,3230.4,3230.3,0.407]
[1737640260753,3.09499,3231.1,3230.4,0.779]
[1737640260987,3.09414,3232.0,3230.8,0.779]
[1737640261190,3.09396,3232.1,3231.6,0.779]
[1737640261353,3.09379,3232.3,3231.6,0.779]
[1737640261550,3.09379,3232.3,3231.6,3.87338]
[1737640261753,3.09386,3232.2,3231.6,3.87338]
[1737640261970,3.09388,3232.2,3231.6,3.87338]
[1737640262258,3.0942,3231.9,3231.6,0.779]
[1737640262456,3.09425,3231.8,3231.6,0.779]
[1737640262883,3.09458,3231.5,3231.0,0.8317]
[1737640263093,3.0,3232.0,3231.0,0.8317]
[1737640263299,3.09449,3231.6,3231.0,0.8317]
[1737640263495,3.09454,3231.5,3231.0,0.8317]
[1737640264194,3.09463,3231.4,3231.0,0.8317]
[1737640264404,3.713542,3231.4,3231.0,0.8317]
[1737640264607,3.09489,3231.2,3231.0,0.8317]
[1737640264835,3.09499,3231.1,3230.8,0.411]
[1737640265301,3.09499,3231.1,3230.7,1.187]
[1737640265696,3.09502,3231.0,3230.7,1.187]
[1737640265893,3.09499,3231.1,3230.7,1.187]
[1737640266221,3.09475,3231.3,3230.7,1.187]
[1737640266710,3.09475,3231.3,3230.7,4.28226]
[1737640266870,3.0,3231.8,3230.7,1.92476]
[1737640267071,0.60408001,3232.0,3231.4,3.0946]
[1737640267271,0.618766,3232.2,3231.3,0.7898]
[1737640267581,3.09407,3232.0,3231.4,3.09461]
[1737640268169,0.4993,3232.4,3230.9,0.7715]
[1737640268371,3.09454,3231.5,3230.9,0.7715]
[1737640268700,3.09493,3231.1,3230.9,0.7715]
[1737640269078,3.09493,3231.1,3230.7,0.416]
[1737640269302,3.09475,3231.3,3230.7,3.51129]
[1737640269508,3.09484,3231.2,3230.7,3.51129]
[1737640269810,3.09503,3231.0,3230.6,1.1875]
[1737640270177,0.309475,3231.3,3230.6,0.7715]
[1737640270178,3.09517,3230.9,3230.6,0.7715]
[1737640270375,6.19069,3230.7,3230.4,0.416]
[1737640270697,3.0953,3230.7,3230.3,0.7715]
[1737640271016,3.714345,3230.7,3230.3,0.7715]
[1737640271989,3.09542,3230.6,3230.3,0.7715]
[1737640272225,0.619045,3230.7,3230.3,0.7715]
[1737640272425,3.09461,3231.5,3230.3,0.7715]
[1737640272638,3.59347,3231.9,3231.1,0.7686]
[1737640272843,0.359347,3231.9,3231.4,3.09457]
[1737640272989,3.09406,3232.0,3231.4,3.09457]
[1737640273185,3.09419,3231.9,3231.4,3.09457]
[1737640273828,3.09425,3231.8,3231.2,3.09482]
[1737640274636,3.09419,3231.9,3231.3,0.414]
[1737640274829,3.09364,3232.5,3231.8,0.7574]
[1737640274993,6.09373,3232.4,3231.8,3.85158]
[1737640275190,3.09387,3232.2,3231.8,0.7574]
[1737640275589,0.309364,3232.5,3231.8,0.7574]
[1737640275798,3.0935,3232.6,3232.0,3.094]
[1737640276043,3.09326,3232.9,3232.2,3.0938]
[1737640276341,0.309326,3232.8,3232.4,3.09363]
[1737640276493,0.309326,3232.8,3232.2,3.0938]
[1737640276828,3.09276,3233.4,3232.4,0.7878]
[1737640277037,3.09276,3233.4,3232.7,3.0933]
[1737640277341,3.59148,3234.0,3233.1,3.09294]
[1737640277633,3.09198,3234.2,3233.3,3.88055]
[1737640277794,3.51407268,3234.1,3233.4,3.0927]
[1737640277995,0.42202268,3234.1,3233.3,0.7878]
[1737640278219,0.4993,3234.9,3233.3,0.7878]
[1737640278427,3.09156,3234.7,3233.3,0.7878]
[1737640278730,3.09192,3234.3,3233.8,0.796]
[1737640279236,3.09207,3234.1,3233.8,0.796]
[1737640279468,3.09192,3234.3,3233.8,0.796]
[1737640279626,3.401152,3234.2,3233.8,0.796]
[1737640279963,3.09258,3233.6,3233.2,1.1999]
[1737640280262,3.09281,3233.3,3233.2,0.413]